fUSD/lending_fUSD_20250108
["ID","MTS","AMOUNT","RATE_DAILY","PERIOD"]
[348146705,1736353854745,-1247.53,0.00012279,2]
[348146706,1736353854755,-500.0,0.00012279,2]
[348146707,1736353854765,-313.41571492,0.00012279,2]
[348146708,1736353854775,-13738.44180308,0.0001229,2]
[348146709,1736353854785,-150.0,0.00012291,2]
[348146710,1736353854795,-150.0,0.00012294,2]
[348146711,1736353854807,-363007.95028233,0.00012296,2]
[348146712,1736353854816,-2000.0,0.00012299,2]
[348146713,1736353854825,-2000.0,0.00012299,2]
[348146714,1736353854835,-2000.0,0.00012299,2]
[348146715,1736353854845,-1000.0,0.00012299,2]
[348146716,1736353854854,-500.0,0.00012299,2]
[348146717,1736353854865,-64957.60765514,0.000123,4]
[348146718,1736353854896,-500.0,0.00010546,2]
[348146719,1736353854906,-137.5221,0.000123,4]
[348146720,1736353854918,-263.86867618,0.000123,4]
[348146721,1736353855454,-500.0,9.999e-05,2]
[348146722,1736353855463,-989.28,0.0001,2]
[348146723,1736353855473,-500.0,0.00010702,2]
[348146724,1736353855484,-566.0,0.00010761,2]
[348146725,1736353855493,-500.0,0.0001082,2]
[348146726,1736353855503,-150.0,0.00010822,2]
[348146727,1736353855513,-500.0,0.00010976,2]
[348146728,1736353855523,-500.0,0.00011094,2]
[348146729,1736353855532,-197.07621788,0.0001125,2]
[348146730,1736353855544,-302.92378212,0.0001125,2]
[348146731,1736353855554,-500.0,0.00011368,2]
[348146732,1736353855562,-150.0,0.00011547,2]
[348146733,1736353855572,-150.0,0.00011781,2]
[348146734,1736353855582,-150.0,0.00011824,2]
[348146735,1736353855591,-150.0,0.00011972,2]
[348146736,1736353855601,-150.0,0.00012003,2]
[348146737,1736353855611,-150.0,0.00012222,2]
[348146738,1736353855620,-3196.10225788,0.000123,4]
[348146739,1736353855632,-5850.15,0.000123,4]
[348146740,1736353855643,-3086.88552804,0.000123,4]
[348146741,1736353855655,-20903.96988347,0.000123,4]
[348146742,1736353855667,-42025.59500107,0.000123,4]
[348146743,1736353855678,-11624.0,0.000123,4]
[348146744,1736353855690,-3325.315,0.000123,4]
[348146745,1736353855700,-2192.24609665,0.000123,4]
[348146746,1736353855712,-2131.153454,0.000123,4]
[348146747,1736353855724,-481.60679252,0.000123,4]
[348146748,1736353910516,7000.0,7.3e-05,2]
[348146749,1736354323631,158297.55528459,0.0002,120]
[348146751,1736354713663,1678.23225137,0.0002,120]
[348146764,1736355032419,-437.11199998,8.219e-05,2]
[348146765,1736355032432,-565.55800002,8.219e-05,2]
[348146766,1736355032442,-34.44199998,8.219e-05,2]
[348146767,1736355036631,-522.17800002,8.219e-05,2]
[348146768,1736355036642,-607.34,9.691e-05,2]
[348146769,1736355036652,-846.71,9.714e-05,2]
[348146770,1736355036662,-1000.0,9.732e-05,2]
[348146771,1736355036671,-202.37,9.764e-05,2]
[348146772,1736355036681,-381.96,9.765e-05,2]
[348146773,1736355036691,-500.0,9.9e-05,2]
[348146774,1736355036700,-14821.0148,9.9e-05,2]
[348146775,1736355036710,-182.7211,9.9e-05,2]
[348146776,1736355036720,-24.31448376,9.934e-05,2]
[348146777,1736355036732,-225.68551624,9.934e-05,2]
[348146778,1736355036741,-250.0,9.944e-05,2]
[348146779,1736355036750,-220.98,9.954e-05,2]
[348146780,1736355036760,-1299.4166795,9.971e-05,2]
[348146781,1736355036769,-1299.4166795,9.973e-05,2]
[348146782,1736355036778,-1299.4166795,9.978e-05,2]
[348146783,1736355036788,-1299.4166795,9.982e-05,2]
[348146784,1736355036797,-1299.4166795,9.983e-05,2]
[348146785,1736355036808,-1299.4166795,9.997e-05,2]
[348146786,1736355036817,-150.0,9.998e-05,2]
[348146787,1736355036827,-414.73,9.999e-05,2]
[348146789,1736355036837,-500.0,9.999e-05,2]
[348146791,1736355036846,-500.0,9.999e-05,2]
[348146793,1736355036855,-500.0,9.999e-05,2]
[348146795,1736355036864,-500.0,9.999e-05,2]
[348146797,1736355036873,-500.0,9.999e-05,2]
[348146799,1736355036883,-505.15826485,9.999e-05,2]
[348146800,1736355036894,-500.0,9.999e-05,2]
[348146802,1736355036904,-500.0,9.999e-05,2]
[348146805,1736355036913,-500.0,9.999e-05,2]
[348146807,1736355036922,-500.0,9.999e-05,2]
[348146808,1736355036932,-500.0,9.999e-05,2]
[348146811,1736355036941,-1451.8,9.999e-05,2]
[348146812,1736355036950,-6473.97980944,0.0001,4]
[348146814,1736355036960,-163.97,0.00010137,2]
[348146817,1736355036969,-686.23,0.00010272,2]
[348146819,1736355036978,-778.11,0.00010272,2]
[348146820,1736355036987,-1387.69,0.00010272,2]
[348146823,1736355036997,-3221.27,0.00010272,2]
[348146825,1736355037006,-500.0,0.00010272,2]
[348146826,1736355037015,-1558.55,0.00010272,2]
[348146828,1736355037024,-500.0,0.00010272,2]
[348146830,1736355037033,-1403.1,0.00010272,2]
[348146832,1736355037042,-8141.55,0.00010272,2]
[348146834,1736355037052,-500.0,0.00010272,2]
[348146836,1736355037061,-503.78,0.00010272,2]
[348146862,1736355037289,-500.0,0.00010272,2]
[348146864,1736355037299,-500.0,0.00010272,2]
[348146867,1736355037309,-500.0,0.00010272,2]
[348146869,1736355037319,-500.0,0.00010272,2]
[348146871,1736355037329,-500.0,0.00010272,2]
[348146872,1736355037338,-631.34,0.00010272,2]
[348146874,1736355037347,-576.87,0.00010272,2]
[348146876,1736355037356,-500.0,0.00010273,2]
[348146878,1736355037365,-500.0,0.00010273,2]
[348146880,1736355037375,-500.0,0.00010273,2]
[348146882,1736355037384,-500.0,0.00010273,2]
[348146884,1736355037394,-500.0,0.00010273,2]
[348146887,1736355037403,-500.0,0.00010273,2]
[348146888,1736355037413,-500.0,0.00010273,2]
[348146890,1736355037422,-1451.8,0.00010273,2]
[348146892,1736355037432,-556.62,0.00010475,2]
[348146895,1736355037442,-686.23,0.00010546,2]
[348146896,1736355037451,-778.11,0.00010546,2]
[348146899,1736355037461,-1387.69,0.00010546,2]
[348146901,1736355037470,-3221.27,0.00010546,2]
[348146902,1736355037481,-500.0,0.00010546,2]
[348146904,1736355037491,-500.0,0.00010546,2]
[348146906,1736355037501,-1403.1,0.00010546,2]
[348146909,1736355037511,-500.0,0.00010546,2]
[348146910,1736355037523,-503.78,0.00010546,2]
[348146912,1736355037532,-500.0,0.00010546,2]
[348146914,1736355037541,-500.0,0.00010546,2]
[348146916,1736355037551,-500.0,0.00010546,2]
[348146918,1736355037562,-500.0,0.00010546,2]
[348146920,1736355037571,-504.47484853,0.00010546,2]
[348146922,1736355037582,-631.34,0.00010546,2]
[348146924,1736355037591,-576.87,0.00010546,2]
[348146926,1736355037602,-471.37339077,0.00010547,2]
[348146928,1736355037611,-450.93571341,0.00010547,2]
[348146930,1736355037620,-500.0,0.00010547,2]
[348146932,1736355037630,-500.0,0.00010547,2]
[348146934,1736355037639,-500.0,0.00010547,2]
[348146936,1736355037649,-500.0,0.00010547,2]
[348146938,1736355037658,-500.0,0.00010547,2]
[348146940,1736355037667,-1451.8,0.00010547,2]
[348146942,1736355037677,-500.0,0.00010702,2]
[348146944,1736355037686,-500.0,0.00010702,2]
[348146946,1736355037695,-500.0,0.00010702,2]
[348146948,1736355037704,-500.0,0.00010702,2]
[348146950,1736355037713,-657.42,0.00010702,2]
[348146952,1736355037724,-500.0,0.00010702,2]
[348146953,1736355037733,-889.92,0.00010702,2]
[348146954,1736355037743,-512.2,0.00010702,2]
[348146955,1736355037753,-607.83,0.00010702,2]
[348146956,1736355037762,-561.98,0.00010702,2]
[348146957,1736355037772,-500.0,0.00010702,2]
[348146958,1736355037781,-500.0,0.00010702,2]
[348146959,1736355037791,-500.0,0.00010702,2]
[348146961,1736355037800,-1203.99,0.00010702,2]
[348146962,1736355037811,-500.0,0.00010702,2]
[348146963,1736355037821,-558.35,0.00010702,2]
[348146964,1736355037832,-581.1,0.00010702,2]
[348146965,1736355037842,-500.0,0.00010702,2]
[348146966,1736355037852,-500.0,0.00010702,2]
[348146967,1736355037861,-500.0,0.00010702,2]
[348146968,1736355037871,-500.0,0.00010702,2]
[348146969,1736355037880,-500.0,0.00010702,2]
[348146970,1736355037890,-686.23,0.0001082,2]
[348146971,1736355037900,-778.11,0.0001082,2]
[348146972,1736355037909,-1387.69,0.0001082,2]
[348146973,1736355037918,-3221.27,0.0001082,2]
[348146974,1736355037928,-500.0,0.0001082,2]
[348146975,1736355037937,-500.0,0.0001082,2]
[348146976,1736355037947,-1403.1,0.0001082,2]
[348146977,1736355037956,-500.0,0.0001082,2]
[348146978,1736355037966,-503.78,0.0001082,2]
[348146979,1736355037975,-500.0,0.0001082,2]
[348146980,1736355037985,-500.0,0.0001082,2]
[348146981,1736355037994,-500.0,0.0001082,2]
[348146982,1736355038004,-500.0,0.0001082,2]
[348146983,1736355038013,-631.34,0.0001082,2]
[348146984,1736355038022,-576.87,0.0001082,2]
[348146985,1736355038032,-396.80399059,0.00010821,2]
[348146986,1736355038042,-500.0,0.00010821,2]
[348146987,1736355038051,-500.0,0.00010821,2]
[348146988,1736355038061,-500.0,0.00010821,2]
[348146989,1736355038070,-500.0,0.00010821,2]
[348146990,1736355038082,-1451.8,0.00010821,2]
[348146991,1736355038092,-634.0,0.0001093,2]
[348146992,1736355038102,-150.0,0.0001093,2]
[348146993,1736355038111,-728.681,0.0001093,2]
[348146995,1736355038121,-3776.0,0.0001093,2]
[348146996,1736355038131,-150.0,0.0001093,2]
[348146997,1736355038141,-1000.0,0.00010949,2]
[348146998,1736355038151,-150.0,0.00010959,2]
[348146999,1736355038160,-500.0,0.00010976,2]
[348147000,1736355038170,-500.0,0.00010976,2]
[348147001,1736355038180,-500.0,0.00010976,2]
[348147002,1736355038189,-500.0,0.00010976,2]
[348147003,1736355038199,-657.42,0.00010976,2]
[348147004,1736355038208,-500.0,0.00010976,2]
[348147005,1736355038218,-889.92,0.00010976,2]
[348147006,1736355038227,-512.2,0.00010976,2]
[348147007,1736355038237,-607.83,0.00010976,2]
[348147008,1736355038247,-561.98,0.00010976,2]
[348147009,1736355038257,-500.0,0.00010976,2]
[348147010,1736355038266,-163.45,0.00010976,2]
[348147011,1736355038275,-500.0,0.00010976,2]
[348147012,1736355038285,-1203.99,0.00010976,2]
[348147013,1736355038294,-500.0,0.00010976,2]
[348147014,1736355038303,-558.35,0.00010976,2]
[348147015,1736355038312,-581.1,0.00010976,2]
[348147016,1736355038321,-173.78,0.00010976,2]
[348147017,1736355038335,-500.0,0.00010976,2]
[348147018,1736355038344,-500.0,0.00010976,2]
[348147019,1736355038354,-500.0,0.00010976,2]
[348147020,1736355038363,-500.0,0.00010976,2]
[348147021,1736355038373,-500.0,0.00010986,2]
[348147022,1736355038383,-150.0,0.00011047,2]
[348147023,1736355038392,-686.23,0.00011094,2]
[348147024,1736355038401,-778.11,0.00011094,2]
[348147025,1736355038411,-1387.69,0.00011094,2]
[348147026,1736355038420,-3221.27,0.00011094,2]
[348147027,1736355038430,-500.0,0.00011094,2]
[348147028,1736355038440,-500.0,0.00011094,2]
[348147029,1736355038449,-1403.1,0.00011094,2]
[348147030,1736355038458,-500.0,0.00011094,2]
[348147031,1736355038468,-503.78,0.00011094,2]
[348147032,1736355038478,-500.0,0.00011094,2]
[348147033,1736355038487,-500.0,0.00011094,2]
[348147034,1736355038496,-500.0,0.00011094,2]
[348147035,1736355038506,-500.0,0.00011094,2]
[348147036,1736355038519,-631.34,0.00011094,2]
[348147037,1736355038528,-576.87,0.00011094,2]
[348147038,1736355038537,-500.0,0.00011095,2]
[348147039,1736355038547,-500.0,0.00011095,2]
[348147040,1736355038556,-500.0,0.00011095,2]
[348147041,1736355038566,-500.0,0.00011095,2]
[348147042,1736355038577,-1451.8,0.00011095,2]
[348147043,1736355038587,-500.0,0.00011249,2]
[348147044,1736355038596,-581.61,0.00011249,2]
[348147045,1736355038605,-546.67,0.00011249,2]
[348147046,1736355038615,-500.0,0.00011249,2]
[348147047,1736355038624,-217.4105222,0.00011249,2]
[348147048,1736355038634,-500.0,0.00011249,2]
[348147050,1736355038643,-1741.38,0.00011249,2]
[348147052,1736355038652,-500.0,0.00011249,2]
[348147054,1736355038662,-500.0,0.00011249,2]
[348147056,1736355038671,-931.94,0.00011249,2]
[348147058,1736355038681,-1681.48,0.00011249,2]
[348147060,1736355038690,-500.0,0.00011249,2]
[348147062,1736355038700,-500.0,0.00011249,2]
[348147064,1736355038710,-823.43,0.00011249,2]
[348147066,1736355038719,-558.57,0.00011249,2]
[348147068,1736355038729,-680.23,0.00011249,2]
[348147070,1736355038738,-687.26,0.00011249,2]
[348147072,1736355038748,-597.14,0.00011249,2]
[348147074,1736355038758,-500.0,0.00011249,2]
[348147076,1736355038768,-1122.46,0.00011249,2]
[348147078,1736355038777,-564.44,0.00011249,2]
[348147080,1736355038788,-500.0,0.00011249,2]
[348147082,1736355038797,-1650.18,0.00011249,2]
[348147084,1736355038808,-786.57,0.00011249,2]
[348147086,1736355038818,-634.89,0.00011249,2]
[348147088,1736355038828,-609.99,0.00011249,2]
[348147090,1736355038837,-1290.14,0.00011249,2]
[348147092,1736355038847,-500.0,0.00011249,2]
[348147095,1736355038856,-500.0,0.00011249,2]
[348147098,1736355038866,-502.81,0.00011249,2]
[348147101,1736355038875,-500.0,0.00011249,2]
[348147105,1736355038885,-852.1,0.00011249,2]
[348147109,1736355038894,-510.15508236,0.00011249,2]
[348147113,1736355038903,-500.0,0.0001125,2]
[348147116,1736355038913,-500.0,0.0001125,2]
[348147119,1736355038922,-500.0,0.0001125,2]
[348147122,1736355038932,-500.0,0.0001125,2]
[348147125,1736355038941,-657.42,0.0001125,2]
[348147128,1736355038951,-500.0,0.0001125,2]
[348147131,1736355038961,-889.92,0.0001125,2]
[348147134,1736355038971,-512.2,0.0001125,2]
[348147137,1736355038981,-607.83,0.0001125,2]
[348147140,1736355038990,-561.98,0.0001125,2]
[348147143,1736355039000,-500.0,0.0001125,2]
[348147146,1736355039011,-500.0,0.0001125,2]
[348147149,1736355039020,-1203.99,0.0001125,2]
[348147152,1736355039030,-473.09212211,0.0001125,2]
[348147155,1736355039039,-558.35,0.0001125,2]
[348147158,1736355039048,-581.1,0.0001125,2]
[348147160,1736355039058,-500.0,0.0001125,2]
[348147162,1736355039068,-500.0,0.0001125,2]
[348147164,1736355039079,-500.0,0.0001125,2]
[348147166,1736355039088,-500.0,0.0001125,2]
[348147168,1736355039098,-165156.94550376,0.0001125,2]
[348147170,1736355039107,-686.23,0.00011368,2]
[348147172,1736355039117,-778.11,0.00011368,2]
[348147174,1736355039127,-1387.69,0.00011368,2]
[348147176,1736355039137,-3221.27,0.00011368,2]
[348147178,1736355039146,-500.0,0.00011368,2]
[348147180,1736355039156,-500.0,0.00011368,2]
[348147182,1736355039166,-1403.1,0.00011368,2]
[348147184,1736355039177,-500.0,0.00011368,2]
[348147186,1736355039187,-503.78,0.00011368,2]
[348147188,1736355039197,-500.0,0.00011368,2]
[348147190,1736355039207,-500.0,0.00011368,2]
[348147192,1736355039218,-500.0,0.00011368,2]
[348147194,1736355039230,-500.0,0.00011368,2]
[348147195,1736355039240,-631.34,0.00011368,2]
[348147197,1736355039251,-576.87,0.00011368,2]
[348147199,1736355039261,-575.56321872,0.00011369,2]
[348147201,1736355039271,-500.0,0.00011369,2]
[348147203,1736355039283,-500.0,0.00011369,2]
[348147205,1736355039294,-500.0,0.00011369,2]
[348147207,1736355039305,-1451.8,0.00011369,2]
[348147209,1736355039315,-2751.0,0.00011507,2]
[348147211,1736355039327,-214.84208217,0.00011523,2]
[348147213,1736355039344,-500.0,0.00011523,2]
[348147215,1736355039354,-500.0,0.00011523,2]
[348147217,1736355039364,-500.0,0.00011523,2]
[348147220,1736355039374,-500.0,0.00011523,2]
[348147221,1736355039383,-500.0,0.00011523,2]
[348147223,1736355039393,-500.0,0.00011523,2]
[348147225,1736355039403,-500.0,0.00011523,2]
[348147227,1736355039413,-500.0,0.00011523,2]
[348147229,1736355039422,-500.0,0.00011523,2]
[348147232,1736355039432,-500.0,0.00011523,2]
[348147234,1736355039442,-500.0,0.00011523,2]
[348147236,1736355039452,-500.0,0.00011523,2]
[348147238,1736355039462,-1741.38,0.00011523,2]
[348147239,1736355039473,-500.0,0.00011523,2]
[348147241,1736355039483,-500.0,0.00011523,2]
[348147243,1736355039493,-1483.6,0.00011523,2]
[348147245,1736355039503,-500.0,0.00011523,2]
[348147247,1736355039514,-428.94,0.00011523,2]
[348147249,1736355039525,-500.0,0.00011523,2]
[348147251,1736355039536,-931.94,0.00011523,2]
[348147253,1736355039546,-500.0,0.00011523,2]
[348147254,1736355039555,-501.02,0.00011523,2]
[348147255,1736355039566,-1681.48,0.00011523,2]
[348147256,1736355039576,-500.0,0.00011523,2]
[348147257,1736355039589,-500.0,0.00011523,2]
[348147258,1736355039599,-500.0,0.00011523,2]
[348147259,1736355039609,-823.43,0.00011523,2]
[348147260,1736355039619,-558.57,0.00011523,2]
[348147262,1736355039628,-680.23,0.00011523,2]
[348147264,1736355039637,-687.26,0.00011523,2]
[348147266,1736355039647,-597.14,0.00011523,2]
[348147268,1736355039656,-500.0,0.00011523,2]
[348147270,1736355039666,-500.0,0.00011523,2]
[348147272,1736355039675,-1122.46,0.00011523,2]
[348147274,1736355039685,-564.44,0.00011523,2]
[348147276,1736355039694,-500.0,0.00011523,2]
[348147278,1736355039704,-1650.18,0.00011523,2]
[348147280,1736355039713,-786.57,0.00011523,2]
[348147282,1736355039723,-609.99,0.00011523,2]
[348147284,1736355039734,-1290.14,0.00011523,2]
[348147286,1736355039744,-500.0,0.00011523,2]
[348147288,1736355039754,-500.0,0.00011523,2]
[348147290,1736355039763,-500.0,0.00011523,2]
[348147292,1736355039773,-500.0,0.00011523,2]
[348147294,1736355039783,-852.1,0.00011523,2]
[348147296,1736355039792,-500.0,0.00011524,2]
[348147299,1736355039802,-500.0,0.00011524,2]
[348147301,1736355039816,-500.0,0.00011524,2]
[348147303,1736355039825,-500.0,0.00011524,2]
[348147305,1736355039838,-657.42,0.00011524,2]
[348147307,1736355039848,-500.0,0.00011524,2]
[348147309,1736355039857,-889.92,0.00011524,2]
[348147311,1736355039867,-512.2,0.00011524,2]
[348147313,1736355039877,-607.83,0.00011524,2]
[348147315,1736355039887,-561.98,0.00011524,2]
[348147317,1736355039896,-500.0,0.00011524,2]
[348147319,1736355039905,-500.0,0.00011524,2]
[348147321,1736355039915,-1203.99,0.00011524,2]
[348147323,1736355039924,-558.35,0.00011524,2]
[348147325,1736355039933,-581.1,0.00011524,2]
[348147327,1736355039943,-500.0,0.00011524,2]
[348147329,1736355039953,-500.0,0.00011524,2]
[348147331,1736355039962,-500.0,0.00011524,2]
[348147333,1736355039971,-500.0,0.00011524,2]
[348147335,1736355039982,-894.68,0.0001161,2]
[348147337,1736355039993,-150.0,0.0001161,2]
[348147339,1736355040003,-150.0,0.0001161,2]
[348147341,1736355040016,-150.0,0.0001161,2]
[348147343,1736355040027,-344.74,0.0001161,2]
[348147345,1736355040038,-150.0,0.0001161,2]
[348147347,1736355040050,-979.58,0.0001161,2]
[348147349,1736355040061,-150.0,0.0001161,2]
[348147351,1736355040071,-979.58,0.0001161,2]
[348147353,1736355040082,-436.76,0.0001161,2]
[348147354,1736355040092,-150.0,0.0001161,2]
[348147356,1736355040102,-150.0,0.0001161,2]
[348147358,1736355040112,-150.0,0.0001161,2]
[348147361,1736355040121,-150.0,0.0001161,2]
[348147363,1736355040131,-150.0,0.0001161,2]
[348147364,1736355040141,-979.58,0.0001161,2]
[348147367,1736355040151,-150.0,0.0001161,2]
[348147368,1736355040161,-437.79,0.00011641,2]
[348147371,1736355040171,-437.79,0.00011641,2]
[348147373,1736355040182,-771.95,0.00011641,2]
[348147375,1736355040191,-437.79,0.00011641,2]
[348147376,1736355040201,-437.51,0.00011641,2]
[348147379,1736355040211,-771.95,0.00011641,2]
[348147381,1736355040220,-437.79,0.00011641,2]
[348147383,1736355040231,-771.95,0.00011641,2]
[348147385,1736355040241,-437.79,0.00011641,2]
[348147387,1736355040250,-771.95,0.00011641,2]
[348147389,1736355040260,-437.79,0.00011641,2]
[348147393,1736355040269,-436.19,0.00011641,2]
[348147395,1736355040279,-771.95,0.00011641,2]
[348147397,1736355040289,-500.0,0.00011641,2]
[348147399,1736355040299,-500.0,0.00011641,2]
[348147401,1736355040309,-500.0,0.00011641,2]
[348147403,1736355040319,-500.0,0.00011641,2]
[348147405,1736355040331,-503.96,0.00011641,2]
[348147407,1736355040341,-500.0,0.00011641,2]
[348147409,1736355040351,-500.0,0.00011641,2]
[348147411,1736355040361,-500.0,0.00011641,2]
[348147413,1736355040371,-500.0,0.00011641,2]
[348147416,1736355040381,-500.0,0.00011641,2]
[348147418,1736355040391,-551.52,0.00011641,2]
[348147419,1736355040401,-500.0,0.00011641,2]
[348147422,1736355040411,-500.0,0.00011641,2]
[348147424,1736355040421,-500.0,0.00011641,2]
[348147426,1736355040430,-500.0,0.00011641,2]
[348147428,1736355040440,-500.0,0.00011641,2]
[348147430,1736355040450,-551.73,0.00011641,2]
[348147432,1736355040459,-500.0,0.00011641,2]
[348147434,1736355040468,-918.73,0.00011641,2]
[348147436,1736355040477,-500.0,0.00011641,2]
[348147438,1736355040486,-588.89,0.00011641,2]
[348147440,1736355040496,-500.0,0.00011641,2]
[348147442,1736355040508,-500.0,0.00011641,2]
[348147444,1736355040518,-500.0,0.00011641,2]
[348147446,1736355040528,-500.0,0.00011641,2]
[348147448,1736355040538,-500.0,0.00011641,2]
[348147450,1736355040548,-413.784965,0.00011641,2]
[348147452,1736355040558,-500.0,0.00011641,2]
[348147454,1736355040569,-1810.0,0.00011641,2]
[348147456,1736355040579,-500.0,0.00011641,2]
[348147458,1736355040594,-443.164798,0.00011641,2]
[348147460,1736355040604,-500.0,0.00011641,2]
[348147462,1736355040614,-259.46,0.00011641,2]
[348147464,1736355040624,-196.962137,0.00011641,2]
[348147466,1736355040633,-500.0,0.00011641,2]
[348147468,1736355040643,-1221.28,0.00011641,2]
[348147470,1736355040654,-183.904436,0.00011641,2]
[348147472,1736355040664,-500.0,0.00011641,2]
[348147474,1736355040674,-500.0,0.00011641,2]
[348147476,1736355040684,-500.0,0.00011641,2]
[348147478,1736355040695,-622.1,0.00011641,2]
[348147480,1736355040705,-500.0,0.00011641,2]
[348147482,1736355040715,-319.26,0.00011641,2]
[348147484,1736355040724,-500.0,0.00011641,2]
[348147486,1736355040734,-500.0,0.00011641,2]
[348147488,1736355040743,-500.0,0.00011641,2]
[348147490,1736355040754,-500.0,0.00011641,2]
[348147492,1736355040764,-500.0,0.00011641,2]
[348147494,1736355040773,-500.0,0.00011641,2]
[348147496,1736355040783,-500.0,0.00011641,2]
[348147498,1736355040793,-500.0,0.00011641,2]
[348147500,1736355040802,-500.0,0.00011641,2]
[348147502,1736355040815,-946.73,0.00011641,2]
[348147504,1736355040824,-689.59,0.00011641,2]
[348147506,1736355040838,-884.86,0.00011641,2]
[348147508,1736355040848,-999.8,0.00011642,2]
[348147510,1736355040858,-686.23,0.00011642,2]
[348147512,1736355040868,-778.11,0.00011642,2]
[348147514,1736355040878,-1387.69,0.00011642,2]
[348147516,1736355040887,-3221.27,0.00011642,2]
[348147518,1736355040897,-500.0,0.00011642,2]
[348147520,1736355040907,-500.0,0.00011642,2]
[348147522,1736355040917,-1403.1,0.00011642,2]
[348147524,1736355040927,-500.0,0.00011642,2]
[348147526,1736355040937,-503.78,0.00011642,2]
[348147528,1736355040948,-500.0,0.00011642,2]
[348147530,1736355040957,-500.0,0.00011642,2]
[348147532,1736355040967,-500.0,0.00011642,2]
[348147534,1736355040976,-500.0,0.00011642,2]
[348147536,1736355040986,-631.34,0.00011642,2]
[348147538,1736355040995,-576.87,0.00011642,2]
[348147540,1736355041006,-500.0,0.00011643,2]
[348147542,1736355041016,-500.0,0.00011643,2]
[348147544,1736355041026,-500.0,0.00011643,2]
[348147546,1736355041035,-1451.8,0.00011643,2]
[348147548,1736355041044,-223.107,0.0001168,2]
[348147550,1736355041054,-500.0,0.00011797,2]
[348147552,1736355041064,-483.79736637,0.00011797,2]
[348147555,1736355041074,-500.0,0.00011797,2]
[348147556,1736355041086,-500.0,0.00011797,2]
[348147559,1736355041095,-1741.38,0.00011797,2]
[348147561,1736355041105,-500.0,0.00011797,2]
[348147563,1736355041114,-1483.6,0.00011797,2]
[348147565,1736355041123,-500.0,0.00011797,2]
[348147567,1736355041133,-500.0,0.00011797,2]
[348147569,1736355041143,-931.94,0.00011797,2]
[348147571,1736355041152,-618.16,0.00011797,2]
[348147573,1736355041162,-500.0,0.00011797,2]
[348147575,1736355041172,-1681.48,0.00011797,2]
[348147577,1736355041182,-500.0,0.00011797,2]
[348147579,1736355041191,-500.0,0.00011797,2]
[348147581,1736355041201,-500.0,0.00011797,2]
[348147583,1736355041210,-823.43,0.00011797,2]
[348147585,1736355041220,-1220.8,0.00011797,2]
[348147587,1736355041230,-558.57,0.00011797,2]
[348147589,1736355041239,-680.23,0.00011797,2]
[348147591,1736355041249,-500.0,0.00011797,2]
[348147593,1736355041258,-687.26,0.00011797,2]
[348147595,1736355041268,-597.14,0.00011797,2]
[348147597,1736355041277,-373.74,0.00011797,2]
[348147599,1736355041287,-1928.72,0.00011797,2]